Cogmind - Beta 13 @@@ ROGUE MODE // 2024.04.11 @ 17:34:00 Player: Spuddz Result: Destroyed self with Mini Grenade Launcher Performance ------------- Evolutions (1) 500 Regions Visited (4) 800 Robots Destroyed (51) 255 Value Destroyed (1128) 1128 Prototype IDs (1) 20 Alien Tech Used (0) 0 Bonus (14) 14 TOTAL SCORE: 2717 Bonus ------- Follower Combat Kills 14 Cogmind --------- Core Integrity 0/400 Matter 199/300 Energy 160/160 System Corruption 0% Temperature Cool (0) Movement Treading (160) Location -9/Mines Parts ------- > --- POWER (1) -------- Light Nuclear Core > --- PROPULSION (4) --- Light Treads Light Treads > --- UTILITY (2) ------ Large Storage Unit > --- WEAPON (2) ------- Mini Grenade Launcher > --- INVENTORY (15) --- Ion Engine Improved Heat Sink Structural Scanner ECM Suite Assault Rifle Assault Rifle Assault Rifle Assault Rifle Heavy Assault Rifle Light Cannon Katana Peak State ------------ > --- POWER ------------ Light Nuclear Core > --- PROPULSION ------- Light Treads Light Treads Light Treads Light Treads > --- UTILITY ---------- Large Storage Unit Light Armor Plating > --- WEAPON ----------- Heavy Assault Rifle Heavy Assault Rifle > --- INVENTORY -------- Ion Engine Light Treads Light Treads Improved Heat Sink Structural Scanner ECM Suite Assault Rifle Assault Rifle Assault Rifle Assault Rifle Light Cannon Rocket Launcher Mini Grenade Launcher Katana [Rating: 15] Favorites ----------- Power Ion Engine Engine Ion Engine Power Core Light Nuclear Core Propulsion Light Treads Treads Light Treads Leg Aluminum Leg Utility Large Storage Unit Device Structural Scanner Storage Large Storage Unit Protection Light Armor Plating Weapon Assault Rifle Ballistic Gun Assault Rifle Ballistic Cannon Light Cannon Launcher Rocket Launcher Build | -11 -10 -10 -9 -9 ------- Run | Yrd Mat Min Mat Min Slots Evolved 2 | . . . 2 . Power . | . . . . . Propulsion 2 | . . . 2 . Utility . | . . . . . Weapon . | . . . . . Parts Attached 32 | . 8 . 15 9 Power 4 | . . . 3 1 Engine 3 | . . . 3 . Core 1 | . . . . 1 Reactor . | . . . . . Propulsion 11 | . 2 . 6 3 Treads 11 | . 2 . 6 3 Leg . | . . . . . Wheel . | . . . . . Hover . | . . . . . Flight . | . . . . . Utility 7 | . 5 . 2 . Device 1 | . 1 . . . Storage 3 | . 3 . . . Processor . | . . . . . Hackware . | . . . . . Protection 3 | . 1 . 2 . Artifact . | . . . . . Weapon 10 | . 1 . 4 5 Energy Gun . | . . . . . Energy Cannon . | . . . . . Ballistic Gun 6 | . 1 . 3 2 Ballistic Cannon 1 | . . . 1 . Launcher 3 | . . . . 3 Special Weapon . | . . . . . Impact Weapon . | . . . . . Slashing Weapon . | . . . . . Piercing Weapon . | . . . . . Special Melee Weapon . | . . . . . Unidentified Prototypes 1 | . . . 1 . Parts Lost 13 | . . . 5 8 Power 2 | . . . 2 . Propulsion 7 | . . . 2 5 Utility 2 | . . . 1 1 Weapon 2 | . . . . 2 Highest Loss Streak 7 | . . . 2 7 To Critical Strikes . | . . . . . Average Slot Usage (%) 98 | . 99 100 94 99 Engine 9 | . 14 14 8 . Core 2 | . . . . 10 Treads 28 | . 6 28 42 43 Leg 7 | . 21 . . . Device 3 | . 10 . . . Storage 12 | . 14 14 11 11 Protection 8 | . 2 14 9 10 Ballistic Gun 23 | . 28 28 17 21 Ballistic Cannon 1 | . . . 4 . Naked Turns . | . . . . . Heaviest Build 34 | 14 32 32 33 34 Greatest Support 80 | 20 40 40 80 80 Greatest Overweight (x) 1 | . 1 . . . Average Overweight (x) . | . . . . . Largest Inventory Capacity 25 | . 25 15 15 15 Average Capacity 14 | . 14 15 15 15 Most Carried 15 | . 15 15 15 14 Average Carried 13 | . 10 15 14 13 Final Capacity 15 | 8 15 15 15 15 Final Carried 15 | 6 15 15 14 11 Class Distribution -------------------- 75% | Mutant 24% | Scavenger-Mutant Dominant Class ---------------- Mutant | -10/Materials Mutant | -10/Mines Mutant | -9/Materials Scavenger-Mutant | -9/Mines Resources | -11 -10 -10 -9 -9 ----------- Run | Yrd Mat Min Mat Min Matter Collected 1209 | 200 293 9 590 117 Remotely . | . . . . . Salvage Created 1619 | . 417 . 996 206 Parts 113 | . 31 . 66 16 Haulers Intercepted 5 | . 2 . 3 . Recyclers Shooed 2 | . . . 2 . Parts Field Recycled . | . . . . . Retrieved Matter . | . . . . . Parts Self-Destructed . | . . . . . Prevented . | . . . . . Kills | -11 -10 -10 -9 -9 ------- Run | Yrd Mat Min Mat Min Combat Hostiles Destroyed 45 | . 11 . 20 14 Guns 29 | . 11 . 15 3 Cannons 5 | . . . 5 . AOE 11 | . . . . 11 Classes Destroyed 11 | . 5 . 5 1 Worker 3 | . . . 2 1 Hauler 5 | . 2 . 3 . Recycler 1 | . . . 1 . Operator 2 | . 1 . 1 . Watcher 2 | . 1 . 1 . Swarmer 13 | . 6 . 3 4 Grunt 20 | . 5 . 13 2 Brawler 2 | . . . 1 1 Duelist 1 | . . . 1 . Sentry 2 | . . . 2 . Assembled 7 | . . . . 7 Best Kill Streak 7 | . 3 . 6 7 Combat Bots Only 7 | . 3 . 4 7 Max Kills in Single Turn 3 | . 1 . 2 3 Gunslinging . | . . . . . Exploded 3 | . . . . 3 Melee . | . . . . . Uniques/NPCs Destroyed . | . . . . . Combat | -11 -10 -10 -9 -9 -------- Run | Yrd Mat Min Mat Min Hostile Shots Fired 210 | . 51 1 116 42 Missed 47 | . 19 . 20 8 Damage Taken 2482 | . 332 9 1130 1011 Core 473 | . 71 . 117 285 Absorbed by Shields . | . . . . . Redirected to Shielding 48 | . . . 48 . Core Remaining (%) 85 | 100 . 71 . . Volleys Fired 126 | . 36 1 74 15 Largest 2 | . 2 2 2 2 Hottest 63 | . 40 40 55 63 Shots Fired 251 | . 72 2 148 29 Gun 214 | . 72 2 121 19 Cannon 27 | . . . 27 . Launcher 10 | . . . . 10 Special . | . . . . . Kinetic 241 | . 72 2 148 19 Thermal . | . . . . . Explosive 10 | . . . . 10 Electromagnetic . | . . . . . Robot Hit Streak 25 | . 7 3 25 10 Robot Miss Streak 7 | . 5 1 7 2 Penetration Max . | . . . . . Secondary Targets 5 | . 2 . 2 1 Max Gunslinging Chain 1 | . 1 . 1 1 Shots Hit Robots 165 | . 42 1 101 21 Core Hits 91 | . 23 . 39 29 Critical Kills 2 | . 1 . 1 . Critical Parts Destroyed 1 | . 1 . . . Critical Strikes 4 | . 2 . 2 . Destroy 3 | . 2 . 1 . Blast 1 | . . . 1 . Melee Attacks . | . . . . . Impact . | . . . . . Slashing . | . . . . . Piercing . | . . . . . Sneak Attacks . | . . . . . Combat Hostiles . | . . . . . Follow-up Attacks . | . . . . . Damage Inflicted 3203 | . 562 13 1588 1040 Guns 1994 | . 562 13 1208 211 Cannons 355 | . . . 355 . Explosions 829 | . . . . 829 Melee . | . . . . . Ramming 25 | . . . 25 . Kinetic 2349 | . 562 13 1563 211 Thermal . | . . . . . Explosive 829 | . . . . 829 Electromagnetic . | . . . . . Impact . | . . . . . Slashing . | . . . . . Piercing . | . . . . . Highest Corruption 1 | . 1 1 . . Average Corruption 1 | . 1 1 . . Corruption Purged . | . . . . . Corruption Blocked . | . . . . . Effects 6 | . 4 2 . . Message Errors 3 | . 2 1 . . Heat Flow Errors 1 | . . 1 . . Parts Fused 1 | . 1 . . . Alerts 1 | . 1 . . . Overload Shots . | . . . . . Overflow Damage 15 | . . . . 15 Projectiles . | . . . . . Explosions 15 | . . . . 15 Melee . | . . . . . Knockbacks 3 | . . . 3 . Impact . | . . . . . Kinetic 2 | . . . 2 . Secondary 1 | . . . 1 . Self-Inflicted Damage 307 | . . . . 307 Shots 8 | . . . . 8 Rammed 4 | . . . 3 1 Targets Rammed 4 | . . . 3 1 Kicked . | . . . . . Crushed . | . . . . . Highest Temperature 108 | . 18 108 25 40 Average Temperature 14 | . 9 61 11 14 Received Heat Transfer 730 | . 147 . 495 88 Siege Activations . | . . . . . Robots Corrupted . | . . . . . Combat Hostiles . | . . . . . Parts Fried . | . . . . . Impact Corruptions . | . . . . . Robots Melted . | . . . . . Combat Hostiles . | . . . . . Parts Melted . | . . . . . Heat Transferred . | . . . . . Parts Sabotaged . | . . . . . Parts Stolen . | . . . . . Parts Stripped . | . . . . . Power Chain Reactions . | . . . . . Alert | -11 -10 -10 -9 -9 ------- Run | Yrd Mat Min Mat Min Peak Influence 384 | . 171 62 384 322 Initial 149 | . . 9 24 149 Average 145 | . 76 44 197 248 Maximum Alert Level 1 | . . . 1 1 Low Security (%) 70 | . 100 100 49 34 Level 1 29 | . . . 50 65 Level 2 . | . . . . . Level 3 . | . . . . . Level 4 . | . . . . . Level 5 . | . . . . . High Security . | . . . . . Max Security . | . . . . . Squads Dispatched 3 | . 1 . 2 . Investigation 1 | . . . 1 . Extermination . | . . . . . Reinforcement 2 | . 1 . 1 . Assault . | . . . . . Garrison . | . . . . . Intercept . | . . . . . Searches Triggered . | . . . . . Construction Impeded . | . . . . . Haulers Reinforced . | . . . . . Active Scanning Responses . | . . . . . Cargo Convoy Interrupts . | . . . . . Stealth | -11 -10 -10 -9 -9 --------- Run | Yrd Mat Min Mat Min Distress Signals 3 | . 1 . 2 . Communications Jammed . | . . . . . Distress Signals . | . . . . . Times Spotted 70 | . 19 3 30 18 Peak Tracking Total 9 | . 4 3 7 9 Tactical Retreats 2 | . 1 . . 1 Traps | -11 -10 -10 -9 -9 ------- Run | Yrd Mat Min Mat Min Traps Triggered 1 | . . . 1 . Indirectly . | . . . . . Trap Hack Attempts . | . . . . . Triggered . | . . . . . Disarmed 6 | . 6 . . . Reprogrammed . | . . . . . Reused . | . . . . . Traps Extracted . | . . . . . Installed . | . . . . . Triggered . | . . . . . Machines | -11 -10 -10 -9 -9 ---------- Run | Yrd Mat Min Mat Min Machines Disabled . | . . . . . Max in Single Turn . | . . . . . Machines Repaired . | . . . . . Machines Dismantled . | . . . . . Machines Sabotaged . | . . . . . Overloaded Fab Kills . | . . . . . Hacking | -11 -10 -10 -9 -9 --------- Run | Yrd Mat Min Mat Min Machines Accessed 7 | . 5 . 2 . Terminals 7 | . 5 . 2 . Fabricators . | . . . . . Repair Stations . | . . . . . Recycling Units . | . . . . . Scanalyzers . | . . . . . Garrison Access . | . . . . . Total Hacks 14 | . 10 . 4 . Successful 6 | . 4 . 2 . Failed 8 | . 6 . 2 . Catastrophic 1 | . 1 . . . Database Lockouts . | . . . . . Manual 14 | . 10 . 4 . Terminals 14 | . 10 . 4 . Fabricators . | . . . . . Repair Stations . | . . . . . Recycling Units . | . . . . . Scanalyzers . | . . . . . Garrison Access . | . . . . . Terminal Hacks 1 | . 1 . . . Disarm Traps 1 | . 1 . . . Fabricator Hacks . | . . . . . Repair Station Hacks . | . . . . . Recycling Unit Hacks . | . . . . . Scanalyzer . | . . . . . Garrison Access Hacks . | . . . . . Unauthorized Hacks 5 | . 3 . 2 . Terminals 5 | . 3 . 2 . Botnet 5 | . 3 . 2 . Fabricators . | . . . . . Repair Stations . | . . . . . Recycling Units . | . . . . . Scanalyzers . | . . . . . Garrison Access . | . . . . . Data Cores Recovered . | . . . . . Used . | . . . . . Hacking Detections 6 | . 4 . 2 . Full Trace Events 2 | . 2 . . . Feedback Events 1 | . 1 . . . Corruption 1 | . 1 . . . Feedback Blocked . | . . . . . Robot Schematics Acquired . | . . . . . Robots Built . | . . . . . Authchips . | . . . . . Time . | . . . . . Total Robot Build Rating . | . . . . . Part Schematics Acquired . | . . . . . Parts Built . | . . . . . Authchips . | . . . . . Time . | . . . . . Total Part Build Rating . | . . . . . Parts Repaired . | . . . . . Time . | . . . . . Parts Recycled . | . . . . . Recycled Matter . | . . . . . Retrieved Matter . | . . . . . Retrieved Components . | . . . . . Parts Scanalyzed . | . . . . . Part Schematics Acquired . | . . . . . Parts Damaged . | . . . . . Bothacking | -11 -10 -10 -9 -9 ------------ Run | Yrd Mat Min Mat Min Used RIF Installer . | . . . . . Robots Hacked . | . . . . . Non-combat . | . . . . . Combat . | . . . . . Robot Hacks Applied . | . . . . . Relay Couplers Released . | . . . . . Fabnet Peak Effective % . | . . . . . Robots Rewired . | . . . . . Allies Hacked . | . . . . . Hacks Repelled . | . . . . . Allies | -11 -10 -10 -9 -9 -------- Run | Yrd Mat Min Mat Min Total Allies 1 | . . 1 . . Largest Group 1 | . . 1 . . Highest-Rated Group 31 | . . 31 . . Highest-Rated Ally 31 | . . 31 . . Total Orders . | . . . . . Ally Attacks 3 | . . 3 . . Total Damage 62 | . . 62 . . Kills 2 | . . 2 . . Allies Corrupted . | . . . . . Allies Melted . | . . . . . Intel | -11 -10 -10 -9 -9 ------- Run | Yrd Mat Min Mat Min Robot Analysis Total . | . . . . . Derelict Logs Recovered 1 | . . . . 1 Drone Launches . | . . . . . Drone Recoveries . | . . . . . Exploration | -11 -10 -10 -9 -9 ------------- Run | Yrd Mat Min Mat Min Turns Passed 2594 | . 876 396 711 611 Spaces Moved 1263 | 1 403 236 279 344 Core . | . . . . . Treads 960 | . 101 236 279 344 Legs 303 | 1 302 . . . Wheels . | . . . . . Hover . | . . . . . Flight . | . . . . . Fastest Speed 120 | 120 120 160 160 160 Average Speed 166 | 120 180 160 160 160 Slowest Speed 190 | 120 190 160 160 160 Overloaded Moves . | . . . . . Propulsion Burnouts . | . . . . . Robots Hopped . | . . . . . Cave-ins Triggered . | . . . . . Exploration Rate (%) 41 | 1 79 49 19 60 Regions Visited 4 Branch Regions 2 Pre-discovered Areas 1 | . . . . 1 Known Exits Taken . | . . . . . Unknown Exits Taken 4 | 1 1 1 1 . Scrap Searched 1 | . . . . 1 Spaces Dug . | . . . . . Terrain Destroyed 107 | . . . . 107 Melee . | . . . . . Projectile . | . . . . . AOE 107 | . . . . 107 Terrain Rammed . | . . . . . Walls Destroyed . | . . . . . Machines Disabled . | . . . . . Actions | -11 -10 -10 -9 -9 --------- Run | Yrd Mat Min Mat Min Total 1506 | . 483 253 395 375 Wait 37 | . 9 17 7 4 Move 1259 | . 402 235 278 344 Hop . | . . . . . Pick Up 29 | . 18 . 9 2 Fast Attach 5 | . 2 . 3 . Attach 14 | . 2 . 7 5 Detach 1 | . . . 1 . Swap 13 | . 4 . 5 4 Drop 18 | . 10 . 8 . Fire 126 | . 36 1 74 15 Melee . | . . . . . Ram . | . . . . . Kick . | . . . . . Crush 4 | . . . 3 1 Escape Stasis . | . . . . . Rewire . | . . . . . Trap . | . . . . . Miscellaneous . | . . . . . Route ------- -11/Scrapyard -10/Materials (discovered 4 exits: *Mat x2 / [*Min] / [Sub]) -10/Mines -9/Materials -9/Mines (discovered 2 exits: [*Mat x2]) History --------- Turn | Location | Event 1 | -11/Scrapyard | Discovered new exit (range 0) 1 | -11/Scrapyard | Entered Materials 302 | -10/Materials | Build established: Mutant 532 | -10/Materials | Discovered new exit (range 10) 532 | -10/Materials | Discovered new exit (range 8) 733 | -10/Materials | Discovered new exit (range 4) 833 | -10/Materials | Discovered new exit (range 13) 877 | -10/Materials | Entered Mines 928 | -10/Mines | Met a Derelict bent on vengeance 947 | -10/Mines | Received a Mining Laser from a helpful Derelict 1125 | -10/Mines | Discovered new exit (range 14) 1273 | -10/Mines | Entered Materials 1273 | -9/Materials | Evolved 2 slots: Propulsion x2 1737 | -9/Materials | Discovered new exit (range 13) 1984 | -9/Materials | Entered Mines 2004 | -9/Mines | Discovered new exit (range 12) 2224 | -9/Mines | Discovered new exit (range 12) 2228 | -9/Mines | Learned location of Storage (-9) 2243 | -9/Mines | Build established: Scavenger-Mutant 2381 | -9/Mines | Learned Materials trap positions 2551 | -9/Mines | Assembled infested the area 2581 | -9/Mines | Core integrity fell below 50% 2591 | -9/Mines | Core integrity fell below 20% 2595 | -9/Mines | Destroyed self with Mini Grenade Launcher Last Messages --------------- 02580_ as-97765 destroyed. 02580_ as-85468 destroyed. 02581_ The unstable cave ceiling collapses. 02583_ as-55199 destroyed. 02583_ as-64348 destroyed. 02583_ Destroyed Asb. Hover Unit. 02583_ as-13588 destroyed. 02586_ as-40627 destroyed. 02586_ as-41431 destroyed. 02586_ as-16987 destroyed. 02587_ C-30 ARC bursts open, deploying its payload. 02587_ D-53 Grenadier unfolds itself. 02587_ Rocket Launcher destroyed. 02588_ Lgt. Treads destroyed. 02589_ The unstable cave ceiling collapses. 02592_ Lgt. Treads destroyed. 02594_ The unstable cave ceiling collapses. 02594_ Hvy. Assault Rifle destroyed. 02595_ U-05 Engineer builds a Wall. Map ----- +----------------------------------------------------+ | ??????????????????????????????????????????? | | ??????????????????????????????????????????? | | ??????????????????????????????????????????? | | ??????????????????????????????????????????? | | ??????????????????????????????????????????? | | ??????????????????????????????????????????? | | ??????????????????????????????????????????? | | ??????????????????????????????????????????? | | ??????????????????????????????????????????? | | ??????????????????????????????????????????? | | ??????????????????????????????????????????? | | ??????????????????????????????????????????? | | ????????????????????????????## #??????????? | | ???????????????????????????? #??????????? | | ???????????????????????????# #??????????? | | ??????????????????????????# ##?????????? | | ?????????????????????????# ??????????? | | ????????????????????????# ##?????????? | | ???????????????????????## ??????????? | | ??????????????????????## ???????????? | | ?????????????????????## ##??????????? | | ?????????????????????# #???? #??? | | ???????????????????### ## ?????? | | ????????##????????## ????????? | | ????????# ???????# #???????????? | | ????????# ????????# d @ #???????????? | | ????????# ???????# #???????????? | | ####????# ???????## d #???????????? | | # ##???# ????????# ##???????????? | | #???# ????????### # ##????????????? | | #???# ??????????#u######?????????????? | | #???## #######???# #??????????????????? | | #??## ## ##??# #??????????????????? | | #??# ##?# #??????????????????? | | #??# ! ### #??????????????????? | | #???# #?#####????????????? | | #????# ###### ##???????????? | | #????## ## #??## #???????????? | | ##????# #####??# ! #??????##???? | | ###??#! #?????## #??#### ####? | | #### #????## #?## #? | | ## ##??## ### # #? | | #### ! ## #? | | ## #? | | ! ! ##### #? | | #####%## = #? | | ##???#!##% ##### #? | | ## #????# % % #??##### ##? | | #### ##????#### #???????###?? | | #??# ########### !#???????????? | +----------------------------------------------------+ Best States ------------- Heat Dissipation 28 Energy Generation 14 Energy Capacity 250 Matter Stores 300 Matter Capacity 300 Sight Range 16 Terrain Scan Density 10 Armor Coverage 150 Weapon Shielding 33 Evasion (%) 55 Recoil Reduction 4 Item Schematics ----------------- None Robot Schematics ------------------ None Fabricated ------------ Nothing Alien Tech Used ----------------- None Achievements -------------- None Challenges ------------ None Game ------ Seed DisruptionDispersionHumpback Manual? 0 Play Time 00:20:29 Cumulative 15.4 hours Start 2024.04.11 @ 17:15:24 End 2024.04.11 @ 17:34:00 Sessions 1 Manual Loads 0 Difficulty Rogue Special Mode None Game No. 46 Rogue 46 Adventurer 0 Explorer 0 Win Type - Total 1 Types 1/0/0/0/0/0/0/0/0 Lore% 15 Gallery% 19 Achievement% 22 Wizard Run 0 Options --------- Layout 2 ASCII 0 Keyboard 0 Movement Mouse Keybinds 0 Fullscreen 2 Font 32/SmallcapsGlow Map View 50x44 Zoom Use 0% Tactical HUD 1 Map Filters NONE Filters NONE Steam 1 RUN: 08fb0114-b4d7-4c65-965a-a1db1cda96ff